bitfinex/quotes_ETHUSD_20251012
["timestamp","ask_amount","ask_price","bid_price","bid_amount"]
[1760264436859,4.53198902,3828.5,3828.4,0.002]
[1760264437058,4.98028902,3828.5,3828.4,0.002]
[1760264440787,4.53198902,3828.5,3828.4,0.002]
[1760264441138,4.98028902,3828.5,3828.4,0.002]
[1760264443446,1.92,3828.5,3828.4,0.4708]
[1760264443663,0.1304,3828.5,3828.4,0.4708]
[1760264443879,0.1314,3828.9,3828.4,0.4708]
[1760264444079,0.1314,3828.9,3828.7,2.61180171]
[1760264444385,0.1314,3828.9,3828.8,14.9688]
[1760264445304,0.1314,3828.9,3828.8,14.5]
[1760264446301,0.001,3828.9,3828.8,14.9688]
[1760264447707,0.001,3828.9,3828.8,17.58058437]
[1760264448671,0.001,3828.9,3828.8,14.9688]
[1760264448899,0.001,3828.9,3828.8,17.58058437]
[1760264449286,0.001,3828.9,3828.8,18.21418437]
[1760264451206,0.001,3828.9,3828.8,17.58058437]
[1760264456712,0.001,3828.9,3828.8,14.9688]
[1760264457016,0.001,3828.9,3828.8,17.58058437]
[1760264458514,0.001,3828.9,3828.8,14.9688]
[1760264459922,0.001,3828.9,3828.8,14.5]
[1760264461442,2.61271615,3828.9,3828.8,14.5]
[1760264461642,2.61198902,3828.5,3828.4,0.002]
[1760264462111,3.05978902,3828.5,3828.4,0.002]
[1760264464340,4.97978902,3828.5,3828.4,0.002]
[1760264465329,3.05978902,3828.5,3828.4,0.002]
[1760264465640,0.001,3828.9,3828.4,3.05574521]
[1760264465818,0.001,3828.9,3828.8,2.61178437]
[1760264466144,0.1314,3828.9,3828.8,2.61178437]
[1760264466441,2.74311615,3828.9,3828.8,14.5]
[1760264466830,2.61271615,3828.9,3828.8,14.5]
[1760264468271,3.05811615,3828.9,3828.8,14.5]
[1760264468573,2.61198902,3828.5,3828.4,0.002]
[1760264469358,3.0571942,3828.8,3828.4,0.002]
[1760264469539,2.61185258,3828.7,3828.4,0.002]
[1760264469937,2.61198902,3828.5,3828.4,0.002]
[1760264470373,3.05738902,3828.5,3828.4,0.002]
[1760264475654,4.97738902,3828.5,3828.4,0.002]
[1760264481691,5.61098902,3828.5,3828.4,0.002]
[1760264483323,2.61275422,3827.4,3826.8,0.4417]
[1760264484154,0.4454,3828.0,3826.8,0.4417]
[1760264484304,2.61274863,3827.4,3826.9,14.5]
[1760264484485,2.61274863,3827.4,3827.0,0.4417]
[1760264485191,2.61274863,3827.4,3827.1,14.5]
[1760264485402,2.61269078,3827.5,3827.1,14.5]
[1760264485604,2.61269078,3827.5,3827.1,14.9413]
[1760264486250,2.61254717,3827.7,3827.1,14.9413]
[1760264486251,2.61274113,3827.4,3827.1,14.9413]
[1760264486391,2.61274113,3827.4,3827.1,14.5]
[1760264486590,2.61274113,3827.4,3827.2,0.4413]
[1760264486803,2.61269291,3827.5,3827.2,0.4413]
[1760264486986,2.61269291,3827.5,3827.1,14.5]
[1760264487190,0.001,3828.9,3827.3,0.6336]
[1760264487399,0.001,3828.9,3827.8,2.61242993]
[1760264487731,2.61233019,3828.0,3827.9,14.5]
[1760264487936,2.612831,3827.3,3826.8,0.4413]
[1760264488231,0.4454,3827.7,3826.9,0.4413]
[1760264488403,2.6126545,3827.6,3827.1,14.5]
[1760264488740,2.6126545,3827.6,3827.1,14.9413]
[1760264488891,0.4454,3828.0,3827.1,14.9413]
[1760264489092,2.61269276,3827.5,3827.1,14.9413]
[1760264489519,0.4454,3828.0,3827.1,14.9413]
[1760264489520,2.61264476,3827.6,3827.1,14.9413]
[1760264489704,0.4454,3828.0,3827.1,14.9413]
[1760264490141,2.61259734,3827.7,3827.1,14.9413]
[1760264490339,2.61260672,3827.6,3827.1,14.9413]
[1760264490535,2.61260672,3827.6,3827.2,0.4413]
[1760264490763,2.61239844,3827.9,3827.2,0.4413]
[1760264490928,2.61247145,3827.8,3827.2,0.4413]
[1760264491128,2.61254078,3827.7,3827.2,0.4413]
[1760264491835,2.61254078,3827.7,3827.1,17.11294105]
[1760264491836,2.61217427,3828.3,3827.6,2.61257661]
[1760264492044,2.61231919,3828.1,3827.1,14.5]
[1760264492339,2.61240347,3827.9,3827.2,2.61282895]
[1760264492745,2.61226255,3828.1,3827.1,14.5]
[1760264492980,2.61239844,3827.9,3827.1,14.5]
[1760264493277,2.61262431,3827.6,3827.1,14.5]
[1760264493438,2.61267925,3827.5,3827.1,14.5]
[1760264494253,2.61273986,3827.4,3827.1,14.5]
[1760264495079,2.61287625,3827.2,3827.1,14.5]
[1760264495239,2.61287625,3827.2,3824.9,2.61438724]
[1760264495240,0.4454,3827.2,3825.9,0.4413]
[1760264495440,2.61304767,3827.0,3826.2,2.61355204]
[1760264495640,2.6131154,3826.9,3826.5,14.5]
[1760264495878,0.4454,3827.2,3826.5,14.5]
[1760264495879,2.61316183,3826.8,3826.5,14.5]
[1760264496074,2.61316183,3826.8,3826.7,0.002]
[1760264496249,2.61310604,3826.9,3826.7,0.002]
[1760264496775,2.61314936,3826.8,3826.7,0.002]
[1760264497069,0.4454,3827.2,3826.7,0.002]
[1760264497463,2.61294452,3827.1,3826.7,0.002]
[1760264497692,2.61301778,3827.0,3826.7,0.002]
[1760264497882,2.61296508,3827.1,3826.7,0.002]
[1760264498068,2.61302101,3827.0,3826.7,0.002]
[1760264498900,2.61298769,3827.1,3826.7,0.002]
[1760264499107,2.61302973,3827.0,3826.7,0.002]
[1760264499705,2.61296422,3827.1,3826.7,0.002]
[1760264500010,2.61287956,3827.2,3826.7,0.002]
[1760264500368,0.4454,3827.1,3826.7,0.002]
[1760264500569,2.61305607,3827.0,3826.7,0.002]
[1760264500910,0.4454,3827.8,3826.8,0.4413]
[1760264501068,0.4454,3827.8,3826.7,0.002]
[1760264501069,2.61288493,3827.2,3826.7,0.002]
[1760264501705,2.61288493,3827.2,3826.8,0.4413]
[1760264502272,2.61288493,3827.2,3826.7,0.002]
[1760264502986,1.92,3827.8,3826.7,0.002]
[1760264503175,0.6336,3828.4,3827.0,2.61299665]
[1760264503176,2.61209203,3828.4,3827.0,2.61299665]
[1760264503383,2.6126036,3827.6,3826.9,2.61307875]
[1760264504016,1.92,3827.7,3826.7,0.002]
[1760264504315,1.92,3827.8,3827.2,2.61286487]
[1760264504516,2.61267729,3827.5,3827.0,0.4487]
[1760264504673,2.61246669,3827.8,3827.0,0.4487]
[1760264504674,2.61262738,3827.6,3827.0,0.4487]
[1760264504874,0.4454,3828.0,3826.7,0.002]
[1760264505097,0.1304,3826.8,3826.7,0.002]
[1760264505295,0.1304,3826.8,3826.7,2.61521765]
[1760264505831,0.1304,3826.8,3826.7,3.06391765]
[1760264507436,0.1304,3826.8,3826.7,17.56391765]
[1760264518881,0.001,3827.2,3827.1,2.61294452]
[1760264519240,0.001,3827.2,3827.1,3.07834452]
[1760264519536,0.001,3827.2,3827.1,17.57834452]
[1760264523159,0.001,3827.2,3827.1,20.13194452]
[1760264532997,0.001,3827.2,3827.1,20.26234452]
[1760264534809,0.001,3828.5,3828.4,3.24565725]
[1760264535026,0.001,3828.5,3828.4,5.29605725]
[1760264535194,0.001,3828.5,3828.4,5.76145725]
[1760264535525,0.001,3828.5,3828.4,20.26145725]
[1760264537398,1e-08,3829.3,3829.2,3.24511154]
[1760264537598,1e-08,3829.3,3829.2,5.16511154]
[1760264537894,1e-08,3829.3,3829.2,5.63051154]
[1760264538216,1e-08,3829.3,3829.2,20.13051154]
[1760264539628,1e-08,3829.3,3828.0,2.61226734]
[1760264539804,0.4411,3829.2,3827.9,0.1702]
[1760264539998,2.61184738,3828.8,3827.7,0.4654]
[1760264540238,0.4411,3829.1,3828.0,14.5]
[1760264540418,2.61197171,3828.6,3828.0,14.5]
[1760264540599,2.6119947,3828.5,3828.0,14.5]
[1760264540930,2.61207236,3828.4,3828.0,14.5]
[1760264541228,0.4411,3828.3,3828.0,14.5]
[1760264541611,2.61204773,3828.5,3828.0,14.5]
[1760264541806,3.05303223,3828.6,3828.0,14.5]
[1760264541996,0.4411,3828.6,3828.0,14.5]
[1760264542493,2.61196758,3828.6,3828.0,14.5]
[1760264542691,2.61200816,3828.5,3828.0,14.5]
[1760264542895,2.61185258,3828.7,3828.0,14.5]
[1760264543114,2.61160086,3829.1,3828.1,3.24784556]
[1760264543324,2.61160086,3829.1,3828.4,2.61204446]
[1760264544617,2.61165103,3829.0,3828.3,2.61210342]
[1760264544810,2.6114517,3829.3,3828.2,0.4654]
[1760264544811,2.61160229,3829.1,3828.4,2.61203986]
[1760264545131,2.6114517,3829.3,3828.6,2.61190605]
[1760264545132,1e-08,3829.3,3828.6,2.61190605]
[1760264545332,2.61145915,3829.3,3828.7,0.4732]
[1760264545524,2.61153435,3829.2,3828.8,14.5]
[1760264545901,2.61158768,3829.1,3828.8,14.9732]
[1760264546507,1e-08,3829.3,3828.8,14.5]
[1760264546909,2.6116237,3829.1,3828.8,14.5]
[1760264547123,2.61151231,3829.2,3828.8,14.5]
[1760264547436,0.4613,3829.0,3828.8,14.5]
[1760264547841,2.61166261,3829.0,3828.8,14.5]
[1760264548223,2.61151143,3829.3,3828.8,14.5]
[1760264548224,3.07301615,3828.9,3828.8,14.5]
[1760264548637,0.4613,3828.9,3828.8,14.5]
[1760264549018,2.61166406,3829.0,3828.8,14.5]
[1760264549646,2.61171615,3828.9,3828.8,14.5]
[1760264550418,2.61178437,3828.8,3826.0,0.1833]
[1760264550715,2.61178437,3828.8,3826.3,0.4752]
[1760264550716,0.6336,3828.5,3826.3,0.4752]
[1760264550923,2.6130305,3827.0,3826.4,14.5]
[1760264551336,2.61314936,3826.8,3826.4,14.5]
[1760264551523,4.53314936,3826.8,3826.4,14.5]
[1760264551745,4.99444936,3826.8,3826.4,14.5]
[1760264553135,4.99444936,3826.8,3826.3,0.002]
[1760264560665,1.92,3826.8,3826.4,2.6134153]
[1760264560853,1.92,3827.3,3826.3,3.08867317]
[1760264561031,0.001,3829.6,3826.6,2.61527362]
[1760264561368,4.53261199,3827.6,3826.6,2.61526799]
[1760264561578,1.92,3827.5,3826.6,2.61526799]
[1760264561778,2.61279441,3827.4,3826.6,2.61526799]
[1760264562383,2.61281748,3827.3,3826.7,14.502]
[1760264562678,2.61289164,3827.2,3826.7,14.502]
[1760264562871,1.92,3827.1,3826.7,14.502]
[1760264563177,0.4348,3827.2,3826.7,14.502]
[1760264563377,2.3548,3827.2,3826.7,14.502]
[1760264563679,1.92,3827.3,3826.7,14.502]
[1760264563982,2.61281272,3827.3,3826.7,14.502]
[1760264564149,1.92,3827.1,3826.7,14.502]
[1760264564782,1.92,3827.2,3826.7,14.502]
[1760264565280,2.61288169,3827.2,3826.7,14.502]
[1760264565451,1.92,3827.2,3826.7,14.502]
[1760264566743,2.61288298,3827.2,3826.7,14.502]
[1760264567181,1.92,3827.2,3826.7,14.9748]
[1760264567383,1.92,3827.3,3826.7,17.58801681]
[1760264567590,2.61280942,3827.3,3826.7,14.9748]
[1760264567885,2.61288384,3827.2,3826.7,14.9748]
[1760264568874,1.92,3827.0,3826.7,14.502]
[1760264569303,2.61295587,3827.1,3826.7,14.502]
[1760264569304,1.92,3827.1,3826.7,14.502]
[1760264569462,1.92,3826.9,3826.7,14.502]
[1760264570797,1.92,3827.0,3826.7,14.502]
[1760264570976,1.92,3827.2,3826.7,14.502]
[1760264571361,2.6130262,3827.0,3826.7,14.502]
[1760264572670,3.0478262,3827.0,3826.7,14.502]
[1760264573503,3.0478262,3827.0,3826.7,0.002]
[1760264574970,2.3548,3827.0,3826.7,0.002]
[1760264576079,3.04781838,3827.0,3826.7,0.002]
[1760264576800,2.3548,3827.0,3826.7,0.002]
[1760264578588,0.40979214,3827.6,3826.8,3.0467017]
[1760264578901,1.92,3827.7,3827.0,2.61296483]
[1760264579072,1.92,3827.7,3827.1,0.4336]
[1760264579274,1.92,3827.7,3827.1,3.0465126]
[1760264579474,1.92,3827.7,3827.2,14.5]
[1760264579986,2.61253879,3827.7,3827.2,14.5]
[1760264580305,3.07333879,3827.7,3827.2,14.5]
[1760264581606,2.61262327,3827.6,3827.2,14.5]
[1760264581974,1.92,3827.6,3827.2,14.5]
[1760264582501,4.53249192,3827.8,3827.2,14.5]
[1760264582973,2.61233286,3828.0,3827.2,14.5]
[1760264582974,1.92,3827.6,3827.2,14.5]
[1760264583376,1.92,3827.9,3827.2,14.5]
[1760264583710,2.6124913,3827.8,3827.2,14.5]
[1760264584016,3.39806996,3828.5,3827.2,14.5]
[1760264584017,0.4618,3828.8,3827.3,0.4336]
[1760264584224,0.1304,3827.8,3827.3,0.4336]
[1760264584816,0.1304,3827.8,3827.7,2.61253494]
[1760264585318,0.1304,3827.8,3827.1,0.1304]
[1760264585616,2.61253494,3827.7,3827.2,14.5]
[1760264585825,1.92,3827.5,3827.2,14.5]
[1760264586185,2.61280798,3827.3,3827.2,14.5]
[1760264586534,1.92,3827.6,3826.7,0.002]
[1760264586818,2.61287947,3827.2,3826.8,14.5]
[1760264586988,1.92,3827.2,3826.8,14.5]
[1760264587184,4.53276241,3827.4,3826.8,14.5]
[1760264587384,1.92,3827.2,3826.8,14.5]
[1760264587588,1.92,3827.5,3826.9,0.4336]
[1760264587910,2.61268334,3827.5,3826.9,0.4336]
[1760264588496,2.61275673,3827.4,3826.9,0.4336]
[1760264588820,1.92,3827.4,3826.9,0.4336]
[1760264588990,2.61275333,3827.4,3826.8,14.5]
[1760264589418,2.612809,3827.3,3826.8,14.5]
[1760264589617,2.61288393,3827.2,3826.8,14.5]
[1760264590401,2.6128322,3827.3,3826.8,14.5]
[1760264590593,2.61279691,3827.4,3826.8,14.9336]
[1760264591197,2.61281191,3827.3,3826.8,14.9336]
[1760264593342,2.61281191,3827.3,3826.8,14.5]
[1760264593552,2.61281191,3827.3,3826.8,14.9336]
[1760264593910,2.61281191,3827.3,3826.9,0.4336]
[1760264594623,0.5922,3828.8,3827.0,0.4336]
[1760264594816,0.001,3828.8,3827.0,0.4336]
[1760264595019,1.92,3828.2,3827.3,2.61280262]
[1760264595336,4.53220094,3828.2,3827.6,14.5]
[1760264595837,1.92,3828.0,3827.6,14.5]
[1760264596040,1.92,3828.0,3827.6,14.9336]
[1760264596444,2.61234436,3828.0,3827.6,14.9336]
[1760264597023,0.4608,3828.7,3827.6,14.5]
[1760264597228,0.001,3828.8,3828.3,2.61212522]
[1760264597429,0.1304,3828.3,3828.2,2.61219372]
[1760264597710,0.1304,3828.3,3828.2,14.9336]
[1760264598020,0.1304,3828.3,3828.2,17.54579372]
[1760264601021,0.1304,3828.3,3828.2,14.9336]
[1760264601756,0.4582,3828.3,3826.5,0.4336]
[1760264601925,1.92,3827.2,3826.4,0.4336]
[1760264602128,2.61294452,3827.1,3826.4,0.4336]
[1760264602433,2.61289187,3827.2,3826.7,14.502]
[1760264602638,2.61289187,3827.2,3826.7,14.9356]
[1760264603269,2.61294553,3827.1,3826.7,14.9356]
[1760264603840,0.4582,3827.6,3826.7,14.502]
[1760264604056,2.6130588,3827.0,3826.7,14.502]
[1760264604234,2.61295154,3827.1,3826.7,14.502]
[1760264604429,2.61289647,3827.2,3826.7,14.502]
[1760264604631,2.61308844,3826.9,3826.7,14.502]
[1760264605145,2.61302782,3827.0,3826.7,14.502]
[1760264605636,0.4582,3827.2,3826.7,14.502]
[1760264605837,2.61314936,3826.8,3826.7,14.502]
[1760264606365,3.05124936,3826.8,3826.7,0.002]
[1760264607747,4.97124936,3826.8,3826.7,0.002]
[1760264608466,4.53314936,3826.8,3826.7,0.002]
[1760264608669,0.40985437,3827.4,3826.7,0.002]
[1760264608961,2.32985437,3827.4,3826.7,0.002]
[1760264609162,0.84795437,3827.4,3826.7,0.002]
[1760264609866,2.61309674,3826.9,3826.7,0.002]
[1760264610057,2.61314936,3826.8,3826.7,0.002]
[1760264612668,1.92,3827.6,3826.7,0.002]
[1760264612865,2.61299904,3827.1,3826.7,0.002]
[1760264613038,2.61301521,3827.0,3826.7,0.002]
[1760264613435,1.92,3827.7,3826.8,0.4729]
[1760264613436,2.61289484,3827.2,3826.8,0.4729]
[1760264613633,0.4381,3828.4,3826.9,0.4729]
[1760264613840,0.1304,3827.1,3826.9,3.08592745]
[1760264614177,0.1304,3827.1,3827.0,14.9729]
[1760264614371,0.1304,3827.1,3827.0,14.5]
[1760264614545,0.4381,3827.6,3827.0,14.5]
[1760264614546,2.61285717,3827.3,3827.0,14.5]
[1760264614749,2.61288119,3827.2,3827.0,14.5]
[1760264615162,2.61267145,3827.5,3827.0,14.5]
[1760264615163,2.61282291,3827.3,3827.0,14.5]
[1760264616145,2.6127531,3827.4,3827.0,14.5]
[1760264616666,2.61281233,3827.3,3827.0,14.5]
[1760264616838,2.61288089,3827.2,3827.0,14.5]
[1760264617478,2.61283431,3827.3,3827.0,14.5]
[1760264617873,2.61288546,3827.2,3827.0,14.5]
[1760264618457,2.61283416,3827.3,3827.0,14.5]
[1760264620666,2.61276409,3827.4,3827.0,14.9729]
[1760264620870,1.92,3827.6,3827.1,0.4729]
[1760264621066,1.92,3827.7,3827.2,0.4729]
[1760264621381,2.61275488,3827.4,3827.2,0.4729]
[1760264622249,2.61275488,3827.4,3827.0,14.5]
[1760264622455,2.61275488,3827.4,3827.1,0.4467]
[1760264623586,2.61281164,3827.3,3827.1,0.4467]
[1760264623790,2.61275442,3827.4,3827.1,0.4467]
[1760264624676,0.1304,3827.1,3827.0,14.502]
[1760264624884,0.1304,3827.1,3827.0,14.9487]
[1760264628461,2.74334452,3827.1,3827.0,14.502]
[1760264628674,5.11454452,3827.1,3827.0,14.502]
[1760264628973,5.11454452,3827.1,3827.0,0.002]
[1760264634434,4.66334452,3827.1,3827.0,0.002]
[1760264634629,1.92,3827.1,3827.0,0.4487]
[1760264634926,0.4409,3828.0,3827.0,0.4487]
[1760264635095,2.61278486,3827.4,3827.0,0.4487]
[1760264635423,2.61278486,3827.4,3827.1,14.5]
[1760264635630,2.61269768,3827.5,3827.1,14.5]
[1760264636000,2.61259483,3827.7,3827.1,14.5]
[1760264636389,2.61274266,3827.4,3827.1,14.5]
[1760264637312,2.61274266,3827.4,3827.2,0.4435]
[1760264637701,0.1304,3827.2,3827.0,0.002]
[1760264637902,2.61264443,3827.6,3827.1,14.5]
[1760264638444,2.61264443,3827.6,3827.2,0.4435]
[1760264638603,2.61269421,3827.5,3827.2,0.4435]
[1760264639342,2.3609,3828.1,3827.3,0.4435]
[1760264639548,0.40973616,3828.2,3827.1,14.5]
[1760264639750,1.92,3827.8,3827.4,0.4435]
[1760264639929,0.1304,3827.4,3827.1,17.1129379]
[1760264640443,0.1304,3827.4,3827.1,14.5]
[1760264640617,2.6127849,3827.4,3827.1,14.5]
[1760264640947,2.61280798,3827.3,3827.1,14.5]
[1760264641532,2.61276144,3827.4,3827.1,14.5]
[1760264642117,2.61271903,3827.5,3827.1,14.9435]
[1760264642323,2.61274743,3827.4,3827.1,14.9435]
[1760264642644,2.61253494,3827.7,3827.1,14.9435]
[1760264642941,2.6125877,3827.7,3827.2,0.4435]
[1760264643146,2.61260569,3827.6,3827.1,14.5]
[1760264643446,1.92,3828.1,3827.3,0.4435]
[1760264643447,2.61267276,3827.5,3827.3,0.4435]
[1760264644154,2.61287625,3827.2,3827.1,14.5]
[1760264645030,3.05377625,3827.2,3827.1,14.5]
[1760264645234,2.74334452,3827.1,3827.0,0.002]
[1760264646957,0.40979825,3827.6,3827.0,0.002]
[1760264647150,1.92,3828.1,3827.0,0.4455]
[1760264647462,2.61212548,3828.3,3827.0,0.4455]
[1760264647463,2.61255334,3827.7,3827.0,0.4455]
[1760264648158,2.61261088,3827.6,3827.0,3.05849277]
[1760264648472,2.61261088,3827.6,3827.1,14.5]
[1760264648758,2.61256053,3827.7,3827.2,0.4435]
[1760264649158,2.61241917,3827.9,3827.2,0.4435]
[1760264649326,2.61241917,3827.9,3827.3,14.5]
[1760264649663,1.92,3827.7,3827.3,14.5]
[1760264650037,1.92,3827.7,3827.3,14.9435]
[1760264650346,1.92,3827.7,3827.4,0.4435]
[1760264651218,2.6124041,3827.9,3827.3,14.5]
[1760264651737,2.61258748,3827.7,3827.3,14.5]
[1760264652256,2.61260967,3827.6,3827.3,14.5]
[1760264653351,2.61293683,3827.2,3827.0,0.002]
[1760264653552,4.53274994,3827.4,3827.0,0.002]
[1760264653553,2.61281425,3827.3,3827.0,0.002]
[1760264653725,2.61288331,3827.2,3827.0,0.002]
[1760264654727,2.61283094,3827.3,3827.0,0.002]
[1760264656035,4.53279327,3827.4,3827.0,0.002]
[1760264656365,1.92,3827.4,3827.1,0.4435]
[1760264656576,4.53274999,3827.4,3827.1,0.4435]
[1760264656869,1.92,3827.4,3827.1,0.4435]
[1760264657456,0.40977822,3827.9,3827.2,0.4435]
[1760264657638,1.92,3827.8,3827.0,2.615007]
[1760264657843,1.92,3827.8,3827.3,14.5]
[1760264658167,2.6125826,3827.7,3827.3,14.5]
[1760264659051,2.61249223,3827.8,3827.3,14.5]
[1760264659276,2.61255233,3827.7,3827.3,14.5]
[1760264660286,2.61248865,3827.8,3827.3,14.5]
[1760264660587,2.61248865,3827.8,3827.3,14.9435]
[1760264661485,2.61248865,3827.8,3827.4,0.4435]
[1760264661661,2.61248865,3827.8,3827.5,0.4435]
[1760264662082,0.1304,3827.5,3827.3,14.5]
[1760264662288,2.61240643,3827.9,3827.3,14.5]
[1760264662487,2.61247596,3827.8,3827.3,14.5]
[1760264662690,2.61247596,3827.8,3827.4,0.4435]
[1760264664459,2.61247596,3827.8,3827.5,0.4435]
[1760264664652,2.3609,3828.4,3827.3,17.55628353]
[1760264664653,0.4409,3828.4,3827.3,17.55628353]
[1760264664858,1.92,3827.9,3827.3,17.55628353]
[1760264665090,1.92,3827.9,3827.4,0.4575]
[1760264665293,1.92,3827.9,3827.5,0.4575]
[1760264665693,0.1304,3827.5,3827.3,14.5]
[1760264665989,0.001,3829.2,3827.0,0.002]
[1760264666197,2.61251372,3829.2,3828.7,0.1702]
[1760264666371,2.61251372,3829.2,3828.7,15.1277]
[1760264666781,0.001,3829.2,3828.7,15.1277]
[1760264666997,2.61252115,3829.2,3828.7,15.1277]
[1760264667299,2.61165811,3829.0,3828.7,14.5]
[1760264667598,2.61159488,3829.1,3828.7,14.5]
[1760264667799,0.001,3829.2,3828.7,14.9575]
[1760264668005,0.001,3829.2,3828.7,17.56935258]
[1760264671811,0.4286,3828.8,3826.6,0.002]
[1760264672106,0.4286,3828.8,3827.0,0.4595]
[1760264672107,1.01620049,3828.8,3827.0,0.4595]
[1760264672270,2.61257726,3827.7,3827.3,14.5]
[1760264672465,2.61273971,3827.4,3827.3,14.5]
[1760264673081,4.53273971,3827.4,3827.3,14.5]
[1760264675292,1.92,3827.4,3827.3,14.5]
[1760264675882,4.53273971,3827.4,3827.3,14.5]
[1760264681718,0.78604302,3828.9,3827.3,14.9575]
[1760264681886,0.1304,3827.4,3827.3,17.11275528]
[1760264682486,0.1304,3827.4,3827.3,17.56625528]
[1760264683096,1.92,3828.3,3827.3,14.9535]
[1760264683305,0.1304,3827.9,3827.4,0.4535]
[1760264683624,2.0504,3827.9,3827.5,0.4535]
[1760264683824,2.0504,3827.9,3827.3,2.61280767]
[1760264683990,2.0504,3827.9,3827.6,14.9535]
[1760264684327,0.1304,3827.9,3827.7,0.4535]
[1760264684493,0.1304,3827.9,3827.6,14.5]
[1760264684695,0.1304,3827.9,3827.7,0.4535]
[1760264684914,0.1304,3827.9,3827.8,0.4535]
[1760264685286,2.0504,3827.9,3827.8,0.4535]
[1760264688322,2.0504,3827.9,3827.8,14.9535]
[1760264689487,4.66279844,3827.9,3827.8,14.9535]
[1760264690531,0.4553,3829.7,3827.8,14.9535]
[1760264690731,2.61172499,3828.9,3828.7,0.1702]
[1760264691102,2.61167516,3829.0,3828.7,0.6237]
[1760264691413,0.001,3829.2,3828.7,15.1237]
[1760264692025,1.921,3829.2,3828.7,15.1237]
[1760264692909,0.001,3829.2,3828.7,15.1237]
[1760264693418,2.61158203,3829.1,3828.7,15.1237]
[1760264693818,0.001,3829.2,3828.7,15.1237]
[1760264694233,1.921,3829.2,3828.7,15.1237]
[1760264694738,0.001,3829.2,3828.7,15.1237]
[1760264695423,2.61255443,3829.2,3828.7,15.1237]
[1760264695823,0.001,3829.2,3828.7,14.5]
[1760264696020,2.61278437,3828.8,3828.7,14.5]
[1760264696528,0.001,3828.8,3828.7,14.5]
[1760264696829,2.61278437,3828.8,3828.7,14.9621]
[1760264697838,0.001,3828.8,3828.7,14.9621]
[1760264698038,2.61278437,3828.8,3828.7,14.9621]
[1760264699039,2.61278437,3828.8,3828.7,14.5]
[1760264702256,2.61278437,3828.8,3827.0,0.002]
[1760264702257,2.61238337,3828.0,3827.7,0.1702]
[1760264702409,1.92,3827.9,3827.7,0.6323]
[1760264702606,1.92,3828.0,3827.8,14.9621]
[1760264702918,1.92000001,3829.3,3827.9,0.4621]
[1760264703241,1.92,3828.6,3827.9,0.4621]
[1760264703407,2.61278576,3828.8,3827.9,0.4621]
[1760264703608,2.6120079,3828.5,3827.9,0.4621]
[1760264703913,2.61185853,3828.7,3828.0,2.61232249]
[1760264704113,2.61192396,3828.6,3828.1,0.4621]
[1760264704642,2.61200323,3828.5,3828.2,14.5]
[1760264704845,2.6119208,3828.6,3828.3,0.4621]
[1760264705048,0.4184,3828.7,3827.4,0.4621]
[1760264705246,2.61268001,3827.5,3827.3,0.002]
[1760264705411,1.92,3828.1,3827.3,0.002]
[1760264705412,2.61273971,3827.4,3827.3,0.002]
[1760264706131,2.3384,3828.1,3827.3,0.002]
[1760264706340,2.61265416,3827.6,3827.3,0.4641]
[1760264706512,2.61265416,3827.6,3827.3,0.002]
[1760264706848,2.61265416,3827.6,3827.4,0.4621]
[1760264707414,0.40974176,3828.3,3827.5,0.4621]
[1760264707841,2.61252813,3827.8,3827.5,0.4621]
[1760264708041,2.6125425,3827.7,3827.5,0.4621]
[1760264708248,2.61260319,3827.6,3827.5,0.4621]
[1760264709146,2.61253606,3827.7,3827.3,0.002]
[1760264709570,2.61271851,3827.5,3827.3,0.002]
[1760264710055,2.61273971,3827.4,3827.3,0.002]
[1760264710650,4.53273971,3827.4,3827.3,0.002]
[1760264713532,1.92,3827.4,3827.3,0.002]
[1760264713758,1.92,3828.3,3827.3,0.4641]
[1760264714074,2.61267526,3827.5,3827.3,0.002]
[1760264715062,2.61262984,3827.6,3827.3,0.002]
[1760264715261,1.92,3827.8,3827.3,0.002]
[1760264715699,2.61250392,3827.8,3827.3,0.002]
[1760264715862,1.92,3827.6,3827.3,0.4641]
[1760264716063,1.92,3827.6,3827.3,0.002]
[1760264716608,2.61267493,3827.5,3827.3,0.002]
[1760264717096,2.61262737,3827.6,3827.3,0.002]
[1760264717898,2.61268839,3827.5,3827.3,0.002]
[1760264718296,2.61262823,3827.6,3827.3,0.002]
[1760264719482,2.61262823,3827.6,3827.4,14.5]
[1760264720922,2.61262823,3827.6,3827.4,14.9621]
[1760264721511,2.61267145,3827.5,3827.4,14.5]
[1760264722713,2.61261584,3827.6,3827.4,14.5]
[1760264723825,1.92,3827.7,3827.4,14.5]
[1760264723826,2.61267145,3827.5,3827.4,14.5]
[1760264724550,2.61262165,3827.6,3827.4,14.5]
[1760264725445,2.61255942,3827.7,3827.4,14.5]
[1760264725616,2.61255942,3827.7,3827.4,14.9418]
[1760264726418,2.61255942,3827.7,3827.4,14.9438]
[1760264726642,2.61263734,3827.6,3827.4,14.9438]
[1760264728751,2.61254882,3827.7,3827.4,14.9438]
[1760264728954,1.92,3827.6,3827.4,14.9438]
[1760264729108,2.6126167,3827.6,3827.4,14.9438]
[1760264729446,1.92,3827.6,3827.4,14.502]
[1760264729657,1.92,3827.8,3827.4,14.502]
[1760264729834,1.92,3827.8,3827.4,14.9438]
[1760264730007,2.61247701,3827.8,3827.4,14.9438]
[1760264730212,2.61247701,3827.8,3827.5,0.4418]